{"text_format":"1","workbook":"xlsx","n_sheets":1,"sheets":["Price bid "],"not_rendered":{"charts":0,"images":0,"macros":1,"external_links":0,"defined_names":0,"comments":0,"pivot_tables":0},"unopened":[],"bounds":{"document_bytes":16777216,"sheet_cells":100000,"rows_first":2000,"rows_last":500,"rows_between":2000,"halvings":0,"cell_chars":16384,"cell_head_chars":4096},"cells_cut":0,"cells_raw":0,"read":"whole","date_system":"1900"}

{"sheet":"Price bid ","index":0,"n_rows":33,"n_cols":10,"rows_kept":33,"cut":false,"hidden":false,"merged":[[0,0,0,9],[1,0,1,9],[2,0,2,9],[3,0,3,9],[27,0,27,9],[28,0,28,9],[5,0,5,1],[25,3,25,9],[25,1,25,2]]}
["BHARAT HEAVY ELECTRICALS LIMITED,  JHANSI"]
["HSE  DEPARTMENT"]
["Price bid "]
["Name of Work: Environmental Monitoring"]
[]
["Tender Enquiry No- HSE/TW/2024/01"]
["S.No.","Description","% Allocation (Item-wise)","No. of sample per visit ","No. of visit ","Total Sample collection","Unit Rate ","Amount (in Rs.)","Rate per Unit (in Rs.)","Amount (in Rs.)"]
[null,"(A)",null,"(B)","(C)","(D)","(E)"]
[1,"Quaterly Factory Oxidation Pond Inlet & Discharge water monitoring",{"$f":"H9/245400","v":9.7799511002444994E-2},2,4,{"$f":"D9*E9","v":8},3000,{"$f":"F9*G9","v":24000},{"$f":"ROUND(J9/F9,4)","v":0},{"$f":"$J$25*C9","v":0}]
[2," Quaterly Township Oxidation Pond Inlet & Discharge water monitoring",{"$f":"H10/245400","v":9.7799511002444994E-2},2,4,{"$f":"D10*E10","v":8},3000,{"$f":"F10*G10","v":24000},{"$f":"ROUND(J10/F10,4)","v":0},0]
[3,"Quaterly Factory Oil Skimmer Inlet & Discharge water monitoring",9.7799511002444994E-2,2,4,8,3000,24000,0,0]
[4,"Half yearly Drinking water monitoring",0.17114914425427874,6,2,{"$f":"D12*E12","v":12},3500,42000,0,0]
[5,"Quaterly Boiler stock emission monitoring",2.2819885900570498E-2,1,4,4,1400,5600,0,0]
[6,"Quterly DG set stack emission monitoring",9.1279543602281993E-2,4,4,16,1400,22400,0,0]
[7,"Half yearly Ambient air Quality monitoring",0.14669926650366749,8,2,16,2250,36000,0,0]
[8,"Half yearly Boiler Dust workplace monitoring",1.7114914425427872E-2,2,2,4,1050,4200,0,0]
[9,"Half yearly Amonia fumes workplace monitoring",1.3039934800325998E-2,2,2,4,800,3200,0,0]
[10,"Half yearly M S welding fumes monitoring ",6.5199674001629987E-2,8,2,16,1000,16000,{"$f":"ROUND(J18/F18,4)","v":0},0]
[11,"Half yearly Saw dust monitoring",2.6079869600651995E-2,4,2,8,800,6400,0,0]
[12," Half Yearly Fiber glass dust monitoring",2.6079869600651995E-2,4,2,{"$f":"D20*E20","v":8},800,6400,0,0]
[13," Half yearly Exhaust of VPD monitoring ",3.2599837000814993E-2,4,2,8,1000,8000,0,0]
[14,"Half yealy Soldering fumes monitoring",3.2599837000814993E-2,5,2,10,800,8000,0,0]
[15,"Half yearly Illumination monitoring",3.2599837000814993E-2,20,2,40,200,8000,0,0]
[16,"Half yearly Noise level monitoring ",2.9339853300733496E-2,12,2,24,300,7200,0,{"$f":"$J$25*C24","v":0}]
[null,"Total",{"$f":"SUM(C9:C24)","v":1},null,null,null,null,{"$f":"SUM(H9:H24)","v":245400},null,0]
[null,"In words ",null,{"$f":"rup(J25)","v":0}]
["Note -GST extra as applicable"]
["1. Bidder has to quote in above unlocked cell (j-25) only. Item rate shall be calculated automatically. Calculated item rates upto four  decimal points may be adjusted w.r.t. gross total amount and it shall be the itemwise final rate for  execution of contract and all other purposes."]
["2. Quoted gross total amount should be considered only if quoted in this excel sheet and print out of this should only be considered for evaluation.  If Price is quoted in any other format other than the Excel Sheet enclosed to the NIT , the offer of the bidder  will be rejected."]
[]
[]
[]
[null,null,"(Signature and Seal of  Contractor  )"]